fUST/lending_fUST_20250224
["ID","MTS","AMOUNT","RATE_DAILY","PERIOD"]
[354315861,1740408332230,-8892.99,0.00013698,2]
[354315862,1740408332253,-500.0,0.00013698,2]
[354315863,1740408332276,-500.0,0.00013698,2]
[354315864,1740408332299,-500.0,0.00013698,2]
[354315865,1740408332322,-500.0,0.00013698,2]
[354315866,1740408332344,-500.0,0.00013698,2]
[354315867,1740408332368,-913.65,0.00013698,2]
[354315868,1740408332393,-500.0,0.00013698,2]
[354315869,1740408332417,-500.0,0.00013698,2]
[354315870,1740408332439,-500.0,0.00013698,2]
[354315871,1740408332462,-500.0,0.00013698,2]
[354315872,1740408332484,-500.0,0.00013698,2]
[354315873,1740408332509,-177.47985933,0.00013698,2]
[354315874,1740408343097,-1617.67014067,0.00013698,2]
[354315875,1740408343260,-663.77,0.00013698,2]
[354315876,1740408343282,-611.42,0.00013698,2]
[354315877,1740408343304,-500.0,0.00013698,2]
[354315878,1740408343327,-694.51,0.00013698,2]
[354315879,1740408343349,-1990.99,0.00013698,2]
[354315880,1740408343371,-668.85,0.00013698,2]
[354315881,1740408343392,-2103.86,0.00013698,2]
[354315882,1740408343413,-525.54,0.00013698,2]
[354315883,1740408343437,-4866.7,0.00013698,2]
[354315884,1740408343460,-923.31,0.00013698,2]
[354315885,1740408343480,-182.010267,0.00013699,2]
[354315886,1740408343502,-854.11588088,0.00013738,2]
[354315887,1740408343523,-500.0,0.0001378,2]
[354315888,1740408343546,-500.0,0.0001378,2]
[354315889,1740408343566,-500.0,0.0001378,2]
[354315890,1740408343586,-500.0,0.0001378,2]
[354315891,1740408343606,-500.0,0.0001378,2]
[354315892,1740408343627,-500.0,0.0001378,2]
[354315893,1740408343648,-500.0,0.0001378,2]
[354315894,1740408343669,-500.0,0.0001378,2]
[354315895,1740408343690,-500.0,0.0001378,2]
[354315896,1740408343711,-500.0,0.0001378,2]
[354315897,1740408343732,-500.0,0.0001378,2]
[354315898,1740408343752,-508.82,0.0001378,2]
[354315899,1740408343773,-500.0,0.0001378,2]
[354315900,1740408343794,-500.0,0.0001378,2]
[354315901,1740408343815,-500.0,0.0001378,2]
[354315902,1740408343837,-500.0,0.0001378,2]
[354315903,1740408343858,-500.0,0.0001378,2]
[354315904,1740408343881,-500.0,0.0001378,2]
[354315905,1740408343904,-500.0,0.0001378,2]
[354315906,1740408343925,-500.0,0.0001378,2]
[354315907,1740408343947,-500.0,0.0001378,2]
[354315908,1740408343969,-500.0,0.0001378,2]
[354315909,1740408343990,-500.0,0.0001378,2]
[354315910,1740408344012,-519.39,0.0001378,2]
[354315911,1740408344033,-500.0,0.0001378,2]
[354315912,1740408344058,-481.4,0.0001378,2]
[354315913,1740408344080,-500.0,0.0001378,2]
[354315914,1740408344102,-500.0,0.0001378,2]
[354315915,1740408344124,-500.0,0.0001378,2]
[354315916,1740408344145,-199.138979,0.0001378,2]
[354315917,1740408344166,-402.50649896,0.0001378,2]
[354315918,1740408344189,-500.0,0.0001378,2]
[354315919,1740408344210,-647.81,0.0001378,2]
[354315920,1740408344233,-8450.92,0.0001378,2]
[354315921,1740408344253,-500.0,0.0001378,2]
[354315922,1740408344274,-500.0,0.0001378,2]
[354315923,1740408344294,-668.37,0.0001378,2]
[354315924,1740408344316,-23096.23,0.0001378,2]
[354315925,1740408344339,-2161.46,0.0001378,2]
[354315926,1740408344361,-856.87,0.0001378,2]
[354315927,1740408344382,-1062.71,0.0001378,2]
[354315928,1740408344403,-500.0,0.0001378,2]
[354315929,1740408344424,-831.56,0.0001378,2]
[354315930,1740408344446,-500.0,0.0001378,2]
[354315931,1740408344468,-1754.04,0.0001378,2]
[354315932,1740408344489,-500.0,0.0001378,2]
[354315933,1740408344509,-500.0,0.0001378,2]
[354315934,1740408344531,-568.24,0.0001378,2]
[354315935,1740408344554,-3232.2,0.0001378,2]
[354315936,1740408344574,-500.0,0.0001378,2]
[354315937,1740408344595,-500.0,0.0001378,2]
[354315938,1740408344615,-317.34,0.0001378,2]
[354315939,1740408344636,-609.8,0.0001378,2]
[354315940,1740408344656,-500.0,0.0001378,2]
[354315941,1740408344679,-1924.96,0.0001378,2]
[354315942,1740408344698,-500.1,0.0001378,2]
[354315943,1740408344719,-900.62,0.0001378,2]
[354315944,1740408344742,-2422.75,0.0001378,2]
[354315945,1740408344766,-763.07,0.0001378,2]
[354315946,1740408344794,-560.56,0.0001378,2]
[354315947,1740408344816,-586.94,0.0001378,2]
[354315948,1740408344839,-500.0,0.0001378,2]
[354315949,1740408344862,-968.32,0.0001378,2]
[354315950,1740408344885,-609.39,0.0001378,2]
[354315951,1740408344906,-500.0,0.0001378,2]
[354315952,1740408344930,-8892.99,0.0001378,2]
[354315953,1740408344951,-500.0,0.0001378,2]
[354315954,1740408344971,-500.0,0.0001378,2]
[354315955,1740408344992,-500.0,0.0001378,2]
[354315956,1740408345013,-500.0,0.0001378,2]
[354315957,1740408345036,-500.0,0.0001378,2]
[354315958,1740408345060,-913.65,0.0001378,2]
[354315959,1740408345083,-259.8,0.0001378,2]
[354315960,1740408345104,-500.0,0.0001378,2]
[354315961,1740408345127,-316.45174854,0.0001378,2]
[354315962,1740408345151,-500.0,0.0001378,2]
[354315963,1740408345173,-500.0,0.0001378,2]
[354315964,1740408345197,-1795.15,0.0001378,2]
[354315965,1740408345220,-663.77,0.0001378,2]
[354315966,1740408345243,-611.42,0.0001378,2]
[354315967,1740408345263,-521.14,0.0001378,2]
[354315968,1740408345285,-694.51,0.0001378,2]
[354315969,1740408345308,-1990.99,0.0001378,2]
[354315970,1740408345331,-668.85,0.0001378,2]
[354315971,1740408345354,-2103.86,0.0001378,2]
[354315972,1740408345375,-525.54,0.0001378,2]
[354315973,1740408345398,-4866.7,0.0001378,2]
[354315974,1740408345421,-923.31,0.0001378,2]
[354315975,1740408345442,-187.075,0.000138,2]
[354315976,1740408345464,-3554.43548355,0.000138,2]
[354315977,1740408345487,-207.78475224,0.000138,2]
[354315978,1740408345509,-854.11588088,0.00013838,2]
[354315979,1740408345529,-500.0,0.00013863,2]
[354315980,1740408345551,-315.82407553,0.00013863,2]
[354315981,1740408345572,-500.0,0.00013863,2]
[354315982,1740408345593,-500.0,0.00013863,2]
[354315983,1740408345614,-500.0,0.00013863,2]
[354315984,1740408345635,-500.0,0.00013863,2]
[354315985,1740408345655,-500.0,0.00013863,2]
[354315986,1740408345676,-500.0,0.00013863,2]
[354315987,1740408345698,-500.0,0.00013863,2]
[354315988,1740408345721,-424.52,0.00013863,2]
[354315989,1740408345743,-500.0,0.00013863,2]
[354315990,1740408345766,-508.82,0.00013863,2]
[354315991,1740408345787,-500.0,0.00013863,2]
[354315992,1740408345808,-500.0,0.00013863,2]
[354315993,1740408345829,-500.0,0.00013863,2]
[354315994,1740408345850,-500.0,0.00013863,2]
[354315995,1740408345872,-500.0,0.00013863,2]
[354315996,1740408345892,-500.0,0.00013863,2]
[354315997,1740408345913,-500.0,0.00013863,2]
[354315998,1740408345934,-500.0,0.00013863,2]
[354315999,1740408345955,-500.0,0.00013863,2]
[354316000,1740408345975,-500.0,0.00013863,2]
[354316001,1740408346000,-500.0,0.00013863,2]
[354316002,1740408346027,-519.39,0.00013863,2]
[354316003,1740408346061,-500.0,0.00013863,2]
[354316004,1740408346083,-500.0,0.00013863,2]
[354316005,1740408346104,-500.0,0.00013863,2]
[354316006,1740408346127,-500.0,0.00013863,2]
[354316007,1740408346151,-647.81,0.00013863,2]
[354316008,1740408346178,-8450.92,0.00013863,2]
[354316009,1740408346200,-500.0,0.00013863,2]
[354316010,1740408346223,-500.0,0.00013863,2]
[354316011,1740408346246,-668.37,0.00013863,2]
[354316012,1740408346269,-23096.23,0.00013863,2]
[354316013,1740408346296,-2161.46,0.00013863,2]
[354316014,1740408346320,-856.87,0.00013863,2]
[354316015,1740408346342,-1062.71,0.00013863,2]
[354316016,1740408346363,-500.0,0.00013863,2]
[354316017,1740408346385,-831.56,0.00013863,2]
[354316018,1740408346408,-500.0,0.00013863,2]
[354316019,1740408346431,-1754.04,0.00013863,2]
[354316020,1740408346452,-500.0,0.00013863,2]
[354316021,1740408346473,-500.0,0.00013863,2]
[354316022,1740408346494,-568.24,0.00013863,2]
[354316023,1740408346516,-3232.2,0.00013863,2]
[354316024,1740408346538,-500.0,0.00013863,2]
[354316025,1740408346559,-500.0,0.00013863,2]
[354316026,1740408346580,-609.8,0.00013863,2]
[354316027,1740408346600,-500.0,0.00013863,2]
[354316028,1740408346623,-1924.96,0.00013863,2]
[354316029,1740408346643,-500.1,0.00013863,2]
[354316030,1740408346665,-900.62,0.00013863,2]
[354316031,1740408346688,-2422.75,0.00013863,2]
[354316032,1740408346711,-763.07,0.00013863,2]
[354316033,1740408346731,-560.56,0.00013863,2]
[354316034,1740408346752,-586.94,0.00013863,2]
[354316035,1740408346774,-500.0,0.00013863,2]
[354316036,1740408346796,-968.32,0.00013863,2]
[354316037,1740408346818,-609.39,0.00013863,2]
[354316038,1740408346840,-500.0,0.00013863,2]
[354316039,1740408346863,-8892.99,0.00013863,2]
[354316040,1740408346887,-500.0,0.00013863,2]
[354316041,1740408346908,-500.0,0.00013863,2]
[354316042,1740408346930,-500.0,0.00013863,2]
[354316043,1740408346951,-500.0,0.00013863,2]
[354316044,1740408347101,-500.0,0.00013863,2]
[354316045,1740408347125,-913.65,0.00013863,2]
[354316046,1740408347148,-500.0,0.00013863,2]
[354316047,1740408347170,-500.0,0.00013863,2]
[354316048,1740408347190,-500.0,0.00013863,2]
[354316049,1740408347214,-1795.15,0.00013863,2]
[354316050,1740408347236,-663.77,0.00013863,2]
[354316051,1740408347257,-611.42,0.00013863,2]
[354316052,1740408347279,-694.51,0.00013863,2]
[354316053,1740408347302,-1990.99,0.00013863,2]
[354316054,1740408347323,-668.85,0.00013863,2]
[354316055,1740408347345,-2103.86,0.00013863,2]
[354316056,1740408347367,-525.54,0.00013863,2]
[354316057,1740408347390,-4866.7,0.00013863,2]
[354316058,1740408347412,-923.31,0.00013863,2]
[354316059,1740408347433,-420.0,0.00013872,2]
[354316060,1740408347454,-500.0,0.00013873,2]
[354316061,1740408347476,-500.0,0.00013899,2]
[354316062,1740408347500,-548.0082981,0.00013899,2]
[354316063,1740408347525,-500.0,0.00013899,2]
[354316064,1740408347551,-574.93088257,0.00013899,2]
[354316065,1740408347575,-558.52918916,0.00013899,2]
[354316066,1740408347597,-500.0,0.00013899,2]
[354316067,1740408347621,-500.0,0.00013899,2]
[354316068,1740408347645,-324.32452637,0.00013899,2]
[354316069,1740408347668,-355.08653656,0.00013899,2]
[354316070,1740408347689,-2153.54708117,0.000139,5]
[354316071,1740408347713,-11966.27169087,0.000139,5]
[354316072,1740408347738,-5104.76279195,0.000139,5]
[354316073,1740408393262,-441.0,0.00013698,2]
[354316074,1740408428143,-300.0,0.00013697,2]
[354316075,1740408428169,-1093.79,0.00013698,2]
[354316076,1740408428193,-500.0,0.00013698,2]
[354316077,1740408428220,-2828.18,0.00013698,2]
[354316078,1740408428244,-500.0,0.00013698,2]
[354316079,1740408428268,-1891.28,0.00013698,2]
[354316080,1740408428292,-500.0,0.00013698,2]
[354316081,1740408428314,-500.0,0.00013698,2]
[354316082,1740408428341,-1684.34,0.00013698,2]
[354316083,1740408428366,-20209.2,0.00013698,2]
[354316084,1740408428393,-7394.56,0.00013698,2]
[354316085,1740408428418,-788.04,0.00013698,2]
[354316086,1740408428441,-667.69,0.00013698,2]
[354316087,1740408428466,-847.28,0.00013698,2]
[354316088,1740408428490,-727.61,0.00013698,2]
[354316089,1740408428513,-749.76,0.00013698,2]
[354316090,1740408428536,-2119.9,0.00013698,2]
[354316091,1740408428559,-533.58,0.00013698,2]
[354316092,1740408428581,-569.60195062,0.00013698,2]
[354316093,1740408428608,-500.0,0.00013698,2]
[354316094,1740408428632,-1534.79,0.0001378,2]
[354316095,1740408428654,-500.0,0.0001378,2]
[354316096,1740408428678,-2828.18,0.0001378,2]
[354316097,1740408428700,-500.0,0.0001378,2]
[354316098,1740408428724,-1891.28,0.0001378,2]
[354316099,1740408428748,-500.0,0.0001378,2]
[354316100,1740408428770,-500.0,0.0001378,2]
[354316101,1740408428794,-1684.34,0.0001378,2]
[354316102,1740408428817,-20209.2,0.0001378,2]
[354316103,1740408428845,-7394.56,0.0001378,2]
[354316104,1740408428868,-788.04,0.0001378,2]
[354316105,1740408428891,-667.69,0.0001378,2]
[354316106,1740408428913,-847.28,0.0001378,2]
[354316107,1740408428935,-727.61,0.0001378,2]
[354316108,1740408428957,-749.76,0.0001378,2]
[354316109,1740408428980,-2119.9,0.0001378,2]
[354316110,1740408429003,-533.58,0.0001378,2]
[354316111,1740408429027,-500.0,0.0001378,2]
[354316112,1740408429055,-1534.79,0.00013863,2]
[354316113,1740408429080,-500.0,0.00013863,2]
[354316114,1740408429108,-2828.18,0.00013863,2]
[354316115,1740408429132,-500.0,0.00013863,2]
[354316116,1740408429157,-1891.28,0.00013863,2]
[354316117,1740408429182,-500.0,0.00013863,2]
[354316118,1740408429205,-500.0,0.00013863,2]
[354316119,1740408429231,-1684.34,0.00013863,2]
[354316120,1740408429255,-20209.2,0.00013863,2]
[354316121,1740408429281,-7394.56,0.00013863,2]
[354316122,1740408429305,-788.04,0.00013863,2]
[354316123,1740408429332,-667.69,0.00013863,2]
[354316124,1740408429361,-847.28,0.00013863,2]
[354316125,1740408429387,-727.61,0.00013863,2]
[354316126,1740408429412,-749.76,0.00013863,2]
[354316127,1740408429439,-2119.9,0.00013863,2]
[354316128,1740408429464,-533.58,0.00013863,2]
[354316129,1740408429489,-5983.13584544,0.000139,5]
[354316130,1740408429513,-1076.77354059,0.000139,5]
[354316131,1740408429538,-1007397.60512435,0.000139,5]
[354316132,1740408431088,-500.0,0.00013863,2]
[354316133,1740408431113,-260000.32161685,0.000139,5]
[354316134,1740408431142,-151.0,0.000139,2]
[354316135,1740408431167,-181.70685487,0.000139,2]
[354316136,1740408431192,-181.70685487,0.000139,2]
[354316137,1740408431217,-181.70685487,0.000139,2]
[354316138,1740408431240,-181.70685487,0.000139,2]
[354316139,1740408431263,-181.70685487,0.000139,2]
[354316140,1740408431284,-181.70685487,0.000139,2]
[354316141,1740408431306,-181.70685487,0.000139,2]
[354316142,1740408431328,-181.70685487,0.000139,2]
[354316143,1740408431353,-181.70685487,0.000139,2]
[354316144,1740408431375,-181.70685487,0.000139,2]
[354316145,1740408431397,-181.70685487,0.000139,2]
[354316146,1740408431420,-181.70685487,0.000139,2]
[354316147,1740408431445,-181.70685487,0.000139,2]
[354316148,1740408431469,-181.70685487,0.000139,2]
[354316149,1740408431492,-181.70685487,0.000139,2]
[354316150,1740408431517,-181.70685487,0.000139,2]
[354316151,1740408431541,-181.70685487,0.000139,2]
[354316152,1740408431566,-181.70685487,0.000139,2]
[354316153,1740408431592,-181.70685487,0.000139,2]
[354316154,1740408431615,-181.7,0.000139,2]
[354316155,1740408431638,-160.1287236,0.000139,2]
[354316156,1740408431660,-160.1287236,0.000139,2]
[354316157,1740408431682,-160.1287236,0.000139,2]
[354316158,1740408431705,-160.1287236,0.000139,2]
[354316159,1740408431728,-160.1287236,0.000139,2]
[354316160,1740408431751,-160.1287236,0.000139,2]
[354316161,1740408431774,-160.1287236,0.000139,2]
[354316162,1740408431799,-160.1287236,0.000139,2]
[354316163,1740408431822,-160.1287236,0.000139,2]
[354316164,1740408431849,-160.12,0.000139,2]
[354316165,1740408431872,-178.85240886,0.000139,2]
[354316166,1740408431896,-178.85240886,0.000139,2]
[354316167,1740408431919,-178.85240886,0.000139,2]
[354316168,1740408431942,-178.85240886,0.000139,2]
[354316169,1740408431964,-178.85,0.000139,2]
[354316170,1740408431985,-151.0,0.000139,2]
[354316171,1740408432006,-355.3763574,0.000139,2]
[354316172,1740408432027,-151.0,0.000139,2]
[354316173,1740408432049,-151.0,0.000139,2]
[354316174,1740408432071,-151.0,0.000139,2]
[354316175,1740408432100,-151.0,0.000139,2]
[354316176,1740408432125,-854.11588088,0.00013938,2]
[354316177,1740408432148,-500.0,0.00013945,2]
[354316178,1740408432173,-500.0,0.00013945,2]
[354316179,1740408432198,-500.0,0.00013945,2]
[354316180,1740408432225,-500.0,0.00013945,2]
[354316181,1740408432249,-500.0,0.00013945,2]
[354316182,1740408432275,-500.0,0.00013945,2]
[354316183,1740408432298,-500.0,0.00013945,2]
[354316184,1740408432321,-500.0,0.00013945,2]
[354316185,1740408432348,-508.82,0.00013945,2]
[354316186,1740408432370,-500.0,0.00013945,2]
[354316187,1740408432393,-500.0,0.00013945,2]
[354316188,1740408432416,-500.0,0.00013945,2]
[354316189,1740408432440,-500.0,0.00013945,2]
[354316190,1740408432463,-500.0,0.00013945,2]
[354316191,1740408432486,-500.0,0.00013945,2]
[354316192,1740408432508,-500.0,0.00013945,2]
[354316193,1740408432531,-500.0,0.00013945,2]
[354316194,1740408432555,-500.0,0.00013945,2]
[354316195,1740408432715,-285.00794394,0.00013945,2]
[354316196,1740408432737,-519.39,0.00013945,2]
[354316197,1740408432758,-500.0,0.00013945,2]
[354316198,1740408432779,-500.0,0.00013945,2]
[354316199,1740408432800,-500.0,0.00013945,2]
[354316200,1740408432821,-647.81,0.00013945,2]
[354316201,1740408432843,-500.0,0.00013945,2]
[354316202,1740408432865,-500.0,0.00013945,2]
[354316203,1740408432887,-668.37,0.00013945,2]
[354316204,1740408432908,-1062.71,0.00013945,2]
[354316205,1740408432937,-500.0,0.00013945,2]
[354316206,1740408432960,-500.0,0.00013945,2]
[354316207,1740408432983,-500.0,0.00013945,2]
[354316208,1740408433005,-500.0,0.00013945,2]
[354316209,1740408433027,-500.1,0.00013945,2]
[354316210,1740408433052,-560.56,0.00013945,2]
[354316211,1740408433074,-586.94,0.00013945,2]
[354316212,1740408433101,-500.0,0.00013945,2]
[354316213,1740408433125,-609.39,0.00013945,2]
[354316214,1740408433149,-500.0,0.00013945,2]
[354316215,1740408433175,-8892.99,0.00013945,2]
[354316216,1740408433200,-500.0,0.00013945,2]
[354316217,1740408433224,-500.0,0.00013945,2]
[354316218,1740408433250,-500.0,0.00013945,2]
[354316219,1740408433273,-500.0,0.00013945,2]
[354316220,1740408433295,-500.0,0.00013945,2]
[354316221,1740408433318,-913.65,0.00013945,2]
[354316222,1740408433340,-500.0,0.00013945,2]
[354316223,1740408433363,-500.0,0.00013945,2]
[354316224,1740408433388,-500.0,0.00013945,2]
[354316225,1740408433412,-1795.15,0.00013945,2]
[354316226,1740408433435,-663.77,0.00013945,2]
[354316227,1740408433460,-611.42,0.00013945,2]
[354316228,1740408433483,-694.51,0.00013945,2]
[354316229,1740408433508,-1990.99,0.00013945,2]
[354316230,1740408433531,-668.85,0.00013945,2]
[354316231,1740408433555,-2103.86,0.00013945,2]
[354316232,1740408433576,-525.54,0.00013945,2]
[354316233,1740408433602,-4866.7,0.00013945,2]
[354316234,1740408433625,-923.31,0.00013945,2]
[354316235,1740408433649,-1534.79,0.00013945,2]
[354316236,1740408433673,-500.0,0.00013945,2]
[354316237,1740408433697,-2828.18,0.00013945,2]
[354316238,1740408433721,-500.0,0.00013945,2]
[354316239,1740408433746,-1891.28,0.00013945,2]
[354316240,1740408433769,-500.0,0.00013945,2]
[354316241,1740408433792,-500.0,0.00013945,2]
[354316242,1740408433816,-1684.34,0.00013945,2]
[354316243,1740408433840,-20209.2,0.00013945,2]
[354316244,1740408433866,-7394.56,0.00013945,2]
[354316245,1740408433889,-788.04,0.00013945,2]
[354316246,1740408433912,-667.69,0.00013945,2]
[354316247,1740408433936,-847.28,0.00013945,2]
[354316248,1740408433959,-727.61,0.00013945,2]
[354316249,1740408433981,-749.76,0.00013945,2]
[354316250,1740408434004,-2119.9,0.00013945,2]
[354316251,1740408434027,-533.58,0.00013945,2]
[354316252,1740408434051,-500.0,0.00013945,2]
[354316253,1740408434072,-500.0,0.00013973,2]
[354316254,1740408434099,-6713.06776758,0.00013986,2]
[354316255,1740408434122,-6713.06776758,0.00013988,2]
[354316256,1740408434145,-6713.06776758,0.00013995,2]
[354316257,1740408434172,-401468.01232782,0.00014,15]
[354316258,1740408434374,-21196.736028,0.00014,15]
[354316259,1740408434439,-136047.391542,0.00014,15]
[354316260,1740408434476,-77049.357228,0.00014,15]
[354316261,1740408439107,-152.94014112,0.00013698,2]
[354316262,1740408439131,-19601.91606613,0.00013698,2]
[354316263,1740408439157,-507.82,0.00013698,2]
[354316264,1740408439181,-507.82,0.0001378,2]
[354316265,1740408439208,-507.82,0.00013863,2]
[354316266,1740408439231,-507.82,0.00013945,2]
[354316267,1740408439257,-103330.61000275,0.00014,15]
[354316268,1740408450094,-500.0,0.00013698,2]
[354316269,1740408450117,-500.0,0.00013698,2]
[354316270,1740408450141,-761.37,0.00013698,2]
[354316271,1740408450166,-500.0,0.0001378,2]
[354316272,1740408450191,-500.0,0.0001378,2]
[354316273,1740408450216,-500.0,0.00013863,2]
[354316274,1740408450240,-500.0,0.00013863,2]
[354316275,1740408450263,-500.0,0.00013945,2]
[354316276,1740408450287,-500.0,0.00013945,2]
[354316277,1740408450312,-382394.411369,0.00014,15]
[354316278,1740408454100,-761.37,0.0001378,2]
[354316279,1740408454132,-761.37,0.00013863,2]
[354316280,1740408454159,-761.37,0.00013945,2]
[354316281,1740408454187,-87906.796362,0.00014,15]
[354316348,1740408632314,-300.0,0.00013697,2]
[354316350,1740408632326,-500.0,0.00013698,2]
[354316352,1740408632337,-534.15148384,0.00013698,2]
[354316354,1740408632348,-500.0,0.00013698,2]
[354316356,1740408632359,-230.35410976,0.00013698,2]
[354316358,1740408632372,-269.64589024,0.00013698,2]
[354316360,1740408632382,-500.0,0.00013698,2]
[354316362,1740408632392,-553.15,0.00013698,2]
[354316364,1740408632402,-500.0,0.00013698,2]
[354316365,1740408632411,-500.0,0.00013698,2]
[354316366,1740408632422,-1495.95,0.00013698,2]
[354316367,1740408632431,-500.0,0.00013698,2]
[354316368,1740408632441,-500.0,0.00013698,2]
[354316369,1740408632452,-500.0,0.00013698,2]
[354316370,1740408632462,-500.0,0.00013698,2]
[354316371,1740408632472,-1753.22,0.00013698,2]
[354316373,1740408632482,-578.76,0.00013698,2]
[354316375,1740408632492,-557.38,0.00013698,2]
[354316377,1740408632505,-4055.58,0.00013698,2]
[354316378,1740408632515,-7410.82,0.00013698,2]
[354316381,1740408632525,-769.43,0.00013698,2]
[354316384,1740408632535,-500.0,0.00013698,2]
[354316387,1740408632546,-500.0,0.00013698,2]
[354316390,1740408632556,-500.0,0.00013698,2]
[354316392,1740408632567,-500.0,0.00013698,2]
[354316394,1740408632577,-500.0,0.00013698,2]
[354316397,1740408632587,-1278.99,0.00013698,2]
[354316400,1740408632598,-1576.07,0.00013698,2]
[354316402,1740408632608,-2356.81,0.00013698,2]
[354316406,1740408632618,-10466.82890005,0.00013698,2]
[354316417,1740408632667,-6374.17109995,0.00013698,2]
[354316419,1740408632677,-3647.04071805,0.00013698,2]
[354316421,1740408632690,-15954.87534808,0.00013698,2]
[354316423,1740408632699,-500.0,0.00013698,2]
[354316425,1740408632709,-606.35,0.00013698,2]
[354316427,1740408632718,-1403.62,0.00013698,2]
[354316429,1740408632728,-500.0,0.00013698,2]
[354316431,1740408632737,-500.0,0.00013698,2]
[354316433,1740408632751,-500.0,0.00013698,2]
[354316435,1740408632762,-656.7,0.00013698,2]
[354316437,1740408632772,-500.0,0.00013698,2]
[354316439,1740408632782,-500.0,0.00013698,2]
[354316441,1740408632792,-500.0,0.0001378,2]
[354316443,1740408632801,-500.0,0.0001378,2]
[354316445,1740408632810,-500.0,0.0001378,2]
[354316447,1740408632820,-500.0,0.0001378,2]
[354316449,1740408632829,-553.15,0.0001378,2]
[354316451,1740408632839,-500.0,0.0001378,2]
[354316453,1740408632849,-500.0,0.0001378,2]
[354316455,1740408632860,-1495.95,0.0001378,2]
[354316457,1740408632871,-500.0,0.0001378,2]
[354316459,1740408632881,-500.0,0.0001378,2]
[354316460,1740408632891,-500.0,0.0001378,2]
[354316462,1740408632901,-1753.22,0.0001378,2]
[354316464,1740408632910,-578.76,0.0001378,2]
[354316466,1740408632920,-557.38,0.0001378,2]
[354316468,1740408632930,-2047.19681175,0.0001378,2]
[354316470,1740408632942,-476.7225,0.0001378,2]
[354316472,1740408632959,-556.41,0.00013698,2]
[354316474,1740408632969,-1531.66068825,0.0001378,2]
[354316475,1740408632978,-7410.82,0.0001378,2]
[354316476,1740408632987,-769.43,0.0001378,2]
[354316477,1740408633000,-500.0,0.0001378,2]
[354316478,1740408633010,-500.0,0.0001378,2]
[354316479,1740408633020,-500.0,0.0001378,2]
[354316480,1740408633030,-500.0,0.0001378,2]
[354316481,1740408633041,-500.0,0.0001378,2]
[354316482,1740408633052,-1278.99,0.0001378,2]
[354316483,1740408633063,-1576.07,0.0001378,2]
[354316484,1740408633074,-2356.81,0.0001378,2]
[354316485,1740408633084,-3857.0551392,0.0001378,2]
[354316486,1740408633097,-517.9462302,0.0001378,2]
[354316487,1740408633111,-429.14794711,0.0001378,2]
[354316488,1740408633125,-3566.3878,0.0001378,2]
[354316639,1740408639099,-8470.46288349,0.0001378,2]
[354316640,1740408639111,-500.0,0.0001378,2]
[354316641,1740408639121,-606.35,0.0001378,2]
[354316642,1740408639131,-1403.62,0.0001378,2]
[354316644,1740408639142,-500.0,0.0001378,2]